lending/lending_fUSD_20260209
["ID","MTS","AMOUNT","RATE_DAILY","PERIOD"]
[404866582,1770629446272,-500.0,0.00044356,120]
[404866583,1770629446281,-521.04084889,0.00044356,120]
[404866585,1770629446290,-500.0,0.00044356,120]
[404866587,1770629446299,-500.0,0.00044356,120]
[404866589,1770629446309,-500.0,0.00044356,120]
[404866590,1770629446318,-500.0,0.00044356,120]
[404866591,1770629446327,-500.0,0.00044356,120]
[404866592,1770629446335,-500.0,0.00044356,120]
[404866593,1770629446344,-621.60512628,0.00044356,120]
[404866594,1770629446353,-500.0,0.00044356,120]
[404866595,1770629446362,-500.0,0.00044356,120]
[404866596,1770629446371,-500.0,0.00044356,120]
[404866597,1770629446380,-489.42911802,0.00044356,120]
[404866598,1770629446389,-500.0,0.00044356,120]
[404866599,1770629446399,-500.0,0.00044356,120]
[404866600,1770629446409,-500.0,0.00044356,120]
[404866601,1770629446419,-500.0,0.00044356,120]
[404866602,1770629446428,-500.0,0.00044356,120]
[404866603,1770629446437,-500.0,0.00044356,120]
[404866604,1770629446446,-500.0,0.00044356,120]
[404866605,1770629446455,-500.0,0.00044356,120]
[404866606,1770629446464,-500.0,0.00044356,120]
[404866607,1770629446473,-500.0,0.00044356,120]
[404866608,1770629446484,-500.0,0.00044356,120]
[404866609,1770629446493,-500.0,0.00044356,120]
[404866610,1770629446502,-500.0,0.00044356,120]
[404866611,1770629446510,-500.0,0.00044356,120]
[404866612,1770629446519,-500.0,0.00044356,120]
[404866613,1770629446528,-500.0,0.00044356,120]
[404866614,1770629446537,-516.19930323,0.00044356,120]
[404866615,1770629446546,-502.35775318,0.00044356,120]
[404866616,1770629446556,-510.54308259,0.00044356,120]
[404866617,1770629446565,-550.67618915,0.00044356,120]
[404866618,1770629446575,-500.0,0.00044356,120]
[404866619,1770629446584,-500.0,0.00044356,120]
[404866620,1770629446593,-500.0,0.00044356,120]
[404866621,1770629446603,-500.0,0.00044356,120]
[404866622,1770629446612,-500.0,0.00044356,120]
[404866623,1770629446625,-500.0,0.00044356,120]
[404866624,1770629446635,-500.0,0.00044356,120]
[404866625,1770629446644,-561.67896793,0.00044356,120]
[404866626,1770629446654,-500.0,0.00044356,120]
[404866627,1770629446665,-500.0,0.00044356,120]
[404866628,1770629446675,-500.0,0.00044356,120]
[404866629,1770629446684,-500.0,0.00044356,120]
[404866630,1770629446695,-500.0,0.00044356,120]
[404866631,1770629446705,-500.0,0.00044356,120]
[404866632,1770629446715,-500.0,0.00044356,120]
[404866633,1770629446724,-500.0,0.00044356,120]
[404866634,1770629446734,-500.0,0.00044356,120]
[404866635,1770629446743,-500.0,0.00044356,120]
[404866636,1770629446752,-500.0,0.00044356,120]
[404866637,1770629446762,-500.0,0.00044356,120]
[404866638,1770629446771,-536.46535925,0.00044356,120]
[404866639,1770629446781,-685.95,0.00044356,120]
[404866640,1770629446790,-685.95,0.00044356,120]
[404866641,1770629446799,-685.95,0.00044356,120]
[404866642,1770629446808,-685.95,0.00044356,120]
[404866643,1770629446817,-685.95,0.00044356,120]
[404866644,1770629446827,-685.95,0.00044356,120]
[404866645,1770629446836,-685.95,0.00044356,120]
[404866646,1770629446846,-685.95,0.00044356,120]
[404866647,1770629446855,-500.0,0.00044356,120]
[404866648,1770629446865,-500.0,0.00044356,120]
[404866649,1770629446874,-500.0,0.00044356,120]
[404866650,1770629446883,-500.0,0.00044356,120]
[404866651,1770629446893,-500.0,0.00044356,120]
[404866652,1770629446902,-500.0,0.00044356,120]
[404866653,1770629446912,-500.0,0.00044356,120]
[404866654,1770629446921,-500.0,0.00044356,120]
[404866655,1770629446932,-500.0,0.00044356,120]
[404866656,1770629446942,-500.0,0.00044356,120]
[404866657,1770629446951,-500.0,0.00044356,120]
[404866658,1770629446961,-500.0,0.00044356,120]
[404866659,1770629446970,-500.0,0.00044356,120]
[404866660,1770629446980,-500.0,0.00044356,120]
[404866661,1770629446989,-500.0,0.00044356,120]
[404866662,1770629446999,-500.0,0.00044356,120]
[404866663,1770629447009,-524.32036231,0.00044356,120]
[404866664,1770629447018,-517.53,0.00044356,120]
[404866665,1770629447028,-500.0,0.00044356,120]
[404866666,1770629447038,-517.53,0.00044356,120]
[404866667,1770629447047,-517.53,0.00044356,120]
[404866668,1770629447056,-500.0,0.00044356,120]
[404866669,1770629447065,-517.53,0.00044356,120]
[404866670,1770629447074,-517.53,0.00044356,120]
[404866671,1770629447083,-500.0,0.00044356,120]
[404866672,1770629447093,-500.0,0.00044356,120]
[404866673,1770629447102,-517.53,0.00044356,120]
[404866674,1770629447111,-500.0,0.00044356,120]
[404866675,1770629447120,-510.02722742,0.00044356,120]
[404866676,1770629447130,-500.0,0.00044356,120]
[404866677,1770629447140,-517.53,0.00044356,120]
[404866678,1770629447149,-500.0,0.00044356,120]
[404866679,1770629447158,-500.0,0.00044356,120]
[404866680,1770629447167,-517.53,0.00044356,120]
[404866681,1770629447176,-500.0,0.00044356,120]
[404866682,1770629447185,-208.74777716,0.00044356,120]
[404866683,1770629447194,-521.96752434,0.00044356,120]
[404866684,1770629447203,-457.05211741,0.00044356,120]
[404866685,1770629447213,-500.0,0.00044356,120]
[404866686,1770629447222,-500.0,0.00044356,120]
[404866687,1770629447232,-512.95856376,0.00044356,120]
[404866688,1770629447241,-500.0,0.00044356,30]
[404866689,1770629447250,-500.0,0.00044356,30]
[404866690,1770629447260,-500.0,0.00044356,30]
[404866691,1770629447269,-500.0,0.00044356,30]
[404866692,1770629447279,-500.0,0.00044356,120]
[404866693,1770629447288,-500.0,0.00044356,30]
[404866694,1770629447298,-500.0,0.00044356,120]
[404866695,1770629447307,-500.0,0.00044356,30]
[404866696,1770629447317,-500.0,0.00044356,30]
[404866697,1770629447326,-500.0,0.00044356,120]
[404866698,1770629447335,-500.0,0.00044356,30]
[404866699,1770629447344,-500.0,0.00044356,120]
[404866700,1770629447353,-500.0,0.00044356,120]
[404866701,1770629447363,-500.0,0.00044356,120]
[404866702,1770629447372,-500.0,0.00044356,120]
[404866703,1770629447381,-500.0,0.00044356,120]
[404866704,1770629447391,-500.0,0.00044356,120]
[404866705,1770629447402,-500.0,0.00044356,120]
[404866706,1770629447411,-552.19245754,0.00044356,120]
[404866707,1770629447421,-500.0,0.00044356,120]
[404866708,1770629447430,-500.0,0.00044356,120]
[404866709,1770629447439,-500.0,0.00044356,120]
[404866710,1770629447449,-637.74,0.00044356,120]
[404866711,1770629447458,-637.74,0.00044356,120]
[404866712,1770629447468,-637.74,0.00044356,120]
[404866713,1770629447477,-637.74,0.00044356,120]
[404866714,1770629447487,-637.74,0.00044356,120]
[404866715,1770629447497,-500.0,0.00044356,120]
[404866716,1770629447507,-500.0,0.00044356,120]
[404866717,1770629447516,-637.74,0.00044356,120]
[404866718,1770629447526,-500.0,0.00044356,120]
[404866719,1770629447535,-500.0,0.00044356,120]
[404866720,1770629447545,-637.74,0.00044356,120]
[404866721,1770629447555,-637.74,0.00044356,120]
[404866722,1770629447564,-500.0,0.00044356,120]
[404866723,1770629447574,-500.0,0.00044356,120]
[404866724,1770629447583,-500.0,0.00044356,120]
[404866725,1770629447592,-500.0,0.00044356,120]
[404866726,1770629447602,-500.0,0.00044356,120]
[404866727,1770629447611,-500.0,0.00044356,120]
[404866728,1770629447622,-500.0,0.00044356,120]
[404866729,1770629447635,-558.81789153,0.00044356,120]
[404866730,1770629447644,-500.0,0.00044356,120]
[404866731,1770629447653,-500.0,0.00044356,120]
[404866732,1770629447665,-500.0,0.00044356,120]
[404866733,1770629447675,-500.0,0.00044356,120]
[404866734,1770629447684,-500.0,0.00044356,120]
[404866735,1770629447693,-500.0,0.00044356,120]
[404866736,1770629447703,-502.17796231,0.00044356,120]
[404866737,1770629447713,-500.0,0.00044356,120]
[404866738,1770629447722,-500.0,0.00044356,120]
[404866739,1770629447731,-500.0,0.00044356,120]
[404866740,1770629447741,-534.8958031,0.00044356,120]
[404866741,1770629447750,-524.56614751,0.00044356,120]
[404866742,1770629447760,-500.0,0.00044356,120]
[404866743,1770629447769,-500.0,0.00044356,120]
[404866744,1770629447780,-500.0,0.00044356,120]
[404866745,1770629447789,-500.0,0.00044356,120]
[404866746,1770629447799,-500.0,0.00044356,120]
[404866747,1770629447808,-500.0,0.00044356,120]
[404866748,1770629447817,-500.0,0.00044356,120]
[404866749,1770629447827,-500.0,0.00044356,120]
[404866750,1770629447837,-206.13951993,0.00044356,120]
[404866751,1770629447846,-500.0,0.00044356,120]
[404866752,1770629447856,-500.0,0.00044356,120]
[404866753,1770629447865,-500.0,0.00044356,120]
[404866754,1770629447874,-535.92007176,0.00044356,120]
[404866755,1770629447883,-500.0,0.00044356,120]
[404866756,1770629447893,-501.64854448,0.00044356,120]
[404866757,1770629447903,-511.69978758,0.00044356,120]
[404866758,1770629447912,-500.0,0.00044356,120]
[404866759,1770629447922,-500.0,0.00044356,120]
[404866760,1770629447931,-500.0,0.00044356,120]
[404866761,1770629447940,-500.0,0.00044356,120]
[404866762,1770629447949,-500.0,0.00044356,120]
[404866763,1770629447958,-500.0,0.00044356,120]
[404866764,1770629447968,-500.0,0.00044356,120]
[404866765,1770629447979,-500.0,0.00044356,120]
[404866766,1770629447989,-500.0,0.00044356,120]
[404866767,1770629447998,-500.0,0.00044356,120]
[404866768,1770629448007,-500.0,0.00044356,120]
[404866769,1770629448017,-500.0,0.00044356,120]
[404866770,1770629448026,-500.0,0.00044356,120]
[404866771,1770629448036,-500.0,0.00044356,120]
[404866772,1770629448045,-500.0,0.00044356,120]
[404866773,1770629448055,-500.0,0.00044356,120]
[404866774,1770629448064,-500.0,0.00044356,120]
[404866775,1770629448073,-500.0,0.00044356,120]
[404866776,1770629448083,-500.0,0.00044356,120]
[404866777,1770629448093,-573.12842026,0.00044356,120]
[404866778,1770629448102,-500.0,0.00044356,120]
[404866779,1770629448112,-500.0,0.00044356,120]
[404866780,1770629448122,-500.0,0.00044356,120]
[404866781,1770629448132,-500.0,0.00044356,120]
[404866782,1770629448142,-500.0,0.00044356,120]
[404866783,1770629448151,-500.0,0.00044356,120]
[404866784,1770629448162,-306.87055764,0.00044356,120]
[404866785,1770629448171,-500.0,0.00044356,120]
[404866786,1770629448181,-500.0,0.00044356,120]
[404866787,1770629448191,-560.83687211,0.00044356,120]
[404866788,1770629448201,-500.0,0.00044356,120]
[404866789,1770629448212,-500.0,0.00044356,120]
[404866790,1770629448221,-500.0,0.00044356,120]
[404866791,1770629448231,-500.0,0.00044356,120]
[404866792,1770629448242,-500.0,0.00044356,120]
[404866793,1770629448251,-500.0,0.00044356,120]
[404866794,1770629448262,-500.0,0.00044356,120]
[404866795,1770629448272,-500.0,0.00044356,120]
[404866796,1770629448283,-500.0,0.00044356,120]
[404866797,1770629448293,-500.0,0.00044356,120]
[404866798,1770629448303,-500.0,0.00044356,120]
[404866799,1770629448312,-500.0,0.00044356,120]
[404866800,1770629448321,-419.04584534,0.00044356,120]
[404866801,1770629448331,-549.83,0.00044356,120]
[404866802,1770629448341,-549.83,0.00044356,120]
[404866803,1770629448350,-549.83,0.00044356,120]
[404866804,1770629448500,-549.83,0.00044356,120]
[404866805,1770629448510,-549.83,0.00044356,120]
[404866806,1770629448519,-549.83,0.00044356,120]
[404866807,1770629448529,-549.83,0.00044356,120]
[404866808,1770629448538,-549.83,0.00044356,120]
[404866809,1770629448548,-504.05586777,0.00044356,120]
[404866810,1770629448557,-502.0763061,0.00044356,120]
[404866811,1770629448567,-522.16146638,0.00044356,120]
[404866812,1770629448577,-500.0,0.00044356,120]
[404866813,1770629448586,-500.0,0.00044356,120]
[404866814,1770629448595,-500.0,0.00044356,120]
[404866815,1770629448604,-500.0,0.00044356,120]
[404866816,1770629448613,-500.0,0.00044356,120]
[404866817,1770629448626,-500.0,0.00044356,120]
[404866818,1770629448635,-500.0,0.00044356,120]
[404866819,1770629448645,-500.0,0.00044356,120]
[404866820,1770629448654,-500.0,0.00044356,120]
[404866821,1770629448663,-529.94486667,0.00044356,120]
[404866822,1770629448673,-500.0,0.00044356,120]
[404866823,1770629448684,-341.19039037,0.00044356,120]
[404866824,1770629448694,-500.0,0.00044356,120]
[404866825,1770629448704,-500.0,0.00044356,120]
[404866826,1770629448716,-500.0,0.00044356,120]
[404866827,1770629448727,-500.0,0.00044356,120]
[404866828,1770629448737,-500.0,0.00044356,120]
[404866829,1770629448746,-500.0,0.00044356,120]
[404866830,1770629448757,-500.0,0.00044356,120]
[404866831,1770629448768,-500.0,0.00044356,120]
[404866832,1770629448778,-500.0,0.00044356,120]
[404866833,1770629448788,-500.0,0.00044356,120]
[404866834,1770629448797,-500.0,0.00044356,120]
[404866835,1770629448807,-500.0,0.00044356,120]
[404866836,1770629448817,-500.0,0.00044356,120]
[404866837,1770629448828,-500.0,0.00044356,120]
[404866838,1770629448839,-500.0,0.00044356,120]
[404866839,1770629448848,-500.0,0.00044356,120]
[404866840,1770629448857,-500.0,0.00044356,120]
[404866841,1770629448867,-500.0,0.00044356,120]
[404866842,1770629448876,-336.07584732,0.00044356,120]
[404866843,1770629448886,-500.0,0.00044356,120]
[404866844,1770629448897,-500.0,0.00044356,120]
[404866845,1770629448906,-490.81825447,0.00044356,120]
[404866846,1770629448916,-500.0,0.00044356,120]
[404866847,1770629448925,-500.0,0.00044356,120]
[404866848,1770629448934,-500.0,0.00044356,120]
[404866849,1770629448943,-500.0,0.00044356,120]
[404866850,1770629448952,-500.0,0.00044356,120]
[404866851,1770629448962,-500.0,0.00044356,120]
[404866852,1770629448971,-500.0,0.00044356,120]
[404866853,1770629448982,-551.07183382,0.00044356,120]
[404866854,1770629448992,-500.0,0.00044356,120]
[404866855,1770629449000,-578.86856079,0.00044356,120]
[404866856,1770629449011,-500.0,0.00044356,120]
[404866857,1770629449022,-500.0,0.00044356,120]
[404866858,1770629449032,-500.0,0.00044356,120]
[404866859,1770629449042,-500.0,0.00044356,120]
[404866860,1770629449052,-500.0,0.00044356,120]
[404866861,1770629449063,-500.0,0.00044356,120]
[404866862,1770629449072,-500.0,0.00044356,120]
[404866863,1770629449081,-500.0,0.00044356,120]
[404866864,1770629449091,-500.0,0.00044356,120]
[404866865,1770629449100,-500.0,0.00044356,120]
[404866866,1770629449109,-500.0,0.00044356,120]
[404866867,1770629449118,-860.95,0.00044356,120]
[404866868,1770629449128,-500.0,0.00044356,120]
[404866869,1770629449137,-860.95,0.00044356,120]
[404866870,1770629449146,-500.0,0.00044356,120]
[404866871,1770629449156,-860.95,0.00044356,120]
[404866872,1770629449165,-500.0,0.00044356,120]
[404866873,1770629449174,-860.95,0.00044356,120]
[404866874,1770629449184,-500.0,0.00044356,120]
[404866875,1770629449193,-860.95,0.00044356,120]
[404866876,1770629449203,-500.0,0.00044356,120]
[404866877,1770629449212,-146.62613228,0.00044356,120]
[404866878,1770629449880,-714.32386772,0.00044356,120]
[404866879,1770629449889,-860.95,0.00044356,120]
[404866880,1770629449899,-650.51223488,0.00044356,120]
[404866881,1770629450041,-210.43776512,0.00044356,120]
[404866882,1770629450050,-860.95,0.00044356,120]
[404866883,1770629450060,-220.31899084,0.00044356,120]
[404866884,1770629450075,-640.63100916,0.00044356,120]
[404866885,1770629450084,-860.95,0.00044356,120]
[404866886,1770629450094,-500.0,0.00044356,120]
[404866887,1770629450103,-500.0,0.00044356,120]
[404866888,1770629450111,-500.0,0.00044356,120]
[404866889,1770629450120,-500.0,0.00044356,120]
[404866890,1770629450130,-500.0,0.00044356,120]
[404866891,1770629450139,-500.0,0.00044356,120]
[404866892,1770629450147,-500.0,0.00044356,120]
[404866893,1770629450156,-500.0,0.00044356,120]
[404866894,1770629450165,-500.0,0.00044356,120]
[404866895,1770629450176,-500.0,0.00044356,120]
[404866896,1770629450184,-500.0,0.00044356,120]
[404866897,1770629450193,-502.85049451,0.00044356,120]
[404866898,1770629450202,-500.0,0.00044356,120]
[404866899,1770629450212,-500.0,0.00044356,120]
[404866900,1770629450221,-500.0,0.00044356,120]
[404866901,1770629450231,-500.0,0.00044356,120]
[404866902,1770629450241,-609.22,0.00044356,120]
[404866903,1770629450251,-500.0,0.00044356,120]
[404866904,1770629450260,-500.0,0.00044356,120]
[404866905,1770629450270,-303.8636819,0.00044356,120]
[404866906,1770629450279,-500.0,0.00044356,120]
[404866907,1770629450288,-82.48481443,0.00044356,120]
[404866908,1770629739059,-281.36,0.00028,13]
[404866909,1770629883287,250.0,0.00015,2]
[404866910,1770629888064,300.0,0.00033989,120]
[404866911,1770629888184,300.0,0.00035342,120]
[404866912,1770629888286,300.0,0.00035342,120]
[404866916,1770630333356,630.0,0.00035616,30]
[404866917,1770630604197,194.10218874,0.000275,120]
[404866920,1770630631758,-994.88176241,0.00025,2]
[404866921,1770630631771,-658.80823759,0.00025,2]
[404866922,1770630631780,-458.992652,0.00034649,2]
[404866923,1770630631790,-2006.43583371,0.00034824,2]
[404866924,1770630631810,-800.0,0.00034824,2]
[404866925,1770630631821,-1571.96416629,0.00034824,2]
[404866926,1770630631830,-1600.0,0.00035877,3]
[404866927,1770630631839,-300.0,0.00035878,120]
[404866928,1770630631849,-500.0,0.00035878,120]
[404866929,1770630631858,-300.0,0.0003653,3]
[404866930,1770630631867,-1000.0,0.00036531,30]
[404866931,1770630631877,-1000.0,0.00036732,30]
[404866932,1770630631886,-728.43583371,0.00036983,30]
[404866933,1770630631904,-271.56416629,0.00036983,30]
[404866934,1770630631915,-1328.43583371,0.00037068,120]
[404866935,1770630631927,-1293.07089697,0.00037068,120]
[404866936,1770630631998,-7124.18576796,0.00037068,120]
[404866937,1770630632013,-1543.58629546,0.00037068,120]
[404866938,1770630632034,-278.9,0.00037068,120]
[404866940,1770630632047,-832.22856812,0.00037068,120]
[404866941,1770630632058,-286.98,0.00037068,120]
[404866942,1770630632078,-9127.68263778,0.00037068,120]
[404866943,1770630632087,-200.0,0.0003734,2]
[404866944,1770630632096,-1000.0,0.00037451,30]
[404866945,1770630632106,-150.0,0.000375,2]
[404866946,1770630632115,-169.978,0.000375,48]
[404866947,1770630632125,-1412.614,0.000375,48]
[404866948,1770630632135,-1148.54212949,0.00037616,2]
[404866949,1770630632145,-173.96,0.00037709,2]
[404866950,1770630632154,-2500.0,0.00038,2]
[404866951,1770630632163,-160.05580747,0.00038,2]
[404866952,1770630632173,-156.59527486,0.00038,2]
[404866953,1770630632183,-1252.52932348,0.00038,2]
[404866954,1770630632192,-210.42424014,0.00038,2]
[404866955,1770630632202,-193.67923825,0.0003809,2]
[404866956,1770630632211,-251.99,0.0003809,2]
[404866957,1770630632221,-251.99,0.0003809,2]
[404866958,1770630632230,-251.99,0.0003809,2]
[404866959,1770630632239,-251.99,0.0003809,2]
[404866960,1770630632249,-251.99,0.0003809,2]
[404866961,1770630632258,-1000.0,0.00038099,2]
[404866962,1770630632268,-249.75994194,0.00038099,15]
[404866963,1770630632277,-500.0,0.00038099,15]
[404866964,1770630632287,-500.0,0.00038099,15]
[404866965,1770630632296,-293.08594553,0.00038099,15]
[404866966,1770630632306,-165.1502926,0.00038099,15]
[404866967,1770630632315,-500.0,0.00038099,15]
[404866968,1770630632324,-519.18825198,0.00038099,15]
[404866969,1770630632334,-320.92841445,0.00038099,15]
[404866970,1770630632344,-1970.06455168,0.000381,2]
[404866971,1770630632539,-23691.283564,0.000381,2]
[404866972,1770630632551,-885.66,0.000381,2]
[404866975,1770630637921,-348.01441186,0.00038,2]
[404866976,1770630637933,-875.29292091,0.00038,2]
[404866977,1770630637979,-461.53487025,0.00038,2]
[404866978,1770630637988,-7889.4629808,0.000381,2]
[404866979,1770630637999,-1045502.22510366,0.000381,2]
[404866980,1770630638012,-11935.11915648,0.000381,2]
[404866981,1770630638023,-6103.65377534,0.000381,2]
[404866982,1770630638034,-10869.68645824,0.000381,2]
[404866983,1770630638046,-3928.40235194,0.000381,2]
[404866984,1770630638061,-252.9257169,0.000381,2]
[404866985,1770630638089,-563.94852852,0.000381,2]
[404867003,1770630639922,-374.10410906,0.000381,2]
[404867004,1770630639934,-497.12974831,0.000381,2]
[404867005,1770630639946,-378.35967258,0.000381,2]
[404867006,1770630639957,-21412.87731256,0.000381,2]
[404867015,1770630644524,-18542.0,0.000381,2]
[404867016,1770630644536,-2343.68669856,0.000381,2]
[404867017,1770630644547,-697.0,0.000381,2]
[404867018,1770630644630,-989.9104,0.000381,2]
[404867019,1770630644641,-4131.7238808,0.000381,2]
[404867028,1770630645789,-300.0,0.000381,2]
[404867029,1770630645842,-406.02414376,0.000381,2]
[404867030,1770630645896,-1434.61950838,0.000381,2]
[404867031,1770630646139,-608.21731146,0.000381,2]
[404867045,1770631522032,166.66,0.00035031,30]
[404867047,1770631610170,-187.55,0.00031093,2]
[404867048,1770631610192,-500.0,0.00031093,2]
[404867049,1770631610213,-337.66241168,0.00031093,2]
[404867050,1770631610236,-250.0,0.00031093,2]
[404867051,1770631610262,-471.0,0.00031093,2]
[404867052,1770631610284,-511.7047,0.00032616,2]
[404867053,1770631610306,-252.38748138,0.00033827,2]
[404867054,1770631610328,-250.0,0.00034202,2]
[404867055,1770631610350,-166.66,0.00035769,30]
[404867056,1770631610372,-166.66,0.00036506,30]
[404867057,1770631610393,-1300.71618355,0.00036722,120]
[404867058,1770631810368,158.22429781,0.00035616,30]
[404867061,1770631832058,-336.26981215,0.00036722,120]
[404867062,1770631832072,-1014.3640043,0.00036722,120]
[404867063,1770631832082,-211.03975091,0.00037144,2]
[404867064,1770631832093,-476.82,0.00037216,120]
[404867065,1770631832103,-166.66,0.00037244,30]
[404867066,1770631832113,-900.37,0.00037258,2]
[404867067,1770631832123,-1280.0,0.00037294,3]
[404867068,1770631832133,-481.72919557,0.00037295,2]
[404867069,1770631832152,-4518.27080443,0.00037295,2]
[404867070,1770631832162,-211.0397509,0.00037322,2]
[404867071,1770631832171,-900.5,0.00037345,2]
[404867072,1770631832180,-1992.84343047,0.000375,2]
[404867073,1770631832190,-366.08139334,0.000375,2]
[404867074,1770631832199,-176.75618032,0.000375,7]
[404867075,1770631832210,-175.45842384,0.000375,2]
[404867076,1770631832219,-211.0397509,0.000375,2]
[404867078,1770631832229,-151.50510114,0.00037524,30]
[404867080,1770631832238,-300.0,0.0003755,10]
[404867082,1770631832247,-666.0,0.0003755,30]
[404867084,1770631832256,-500.0,0.0003755,15]
[404867086,1770631832266,-500.0,0.0003755,15]
[404867088,1770631832275,-500.0,0.0003755,15]
[404867090,1770631832284,-500.0,0.0003755,15]
[404867092,1770631832294,-500.0,0.0003755,15]
[404867093,1770631832312,-392.58635509,0.0003755,15]
[404867094,1770631832326,-500.0,0.0003755,15]
[404867095,1770631832336,-500.0,0.0003755,15]
[404867096,1770631832345,-500.0,0.0003755,15]
[404867097,1770631832355,-500.0,0.0003755,15]
[404867098,1770631832365,-500.0,0.0003755,15]
[404867099,1770631832374,-500.0,0.0003755,15]
[404867100,1770631832385,-490.491998,0.0003755,15]
[404867101,1770631832395,-3202.76,0.000376,14]
[404867102,1770631832405,-214.27,0.00037608,2]
[404867103,1770631832414,-10000.0,0.00037899,2]
[404867104,1770631832424,-1123.2786,0.00037899,2]
[404867105,1770631832434,-166.66,0.00037981,30]
[404867106,1770631832443,-151.0,0.00037996,14]
[404867107,1770631832453,-1130.091,0.00037998,50]
[404867108,1770631832462,-1000.0,0.00038,2]
[404867109,1770631832472,-194.1,0.00038,2]
[404867110,1770631832481,-2660.189693,0.00038098,2]
[404867111,1770631832491,-1992.84343038,0.00038251,2]
[404867112,1770631832500,-366.08139334,0.00038251,2]
[404867113,1770631832510,-1000.000001,0.00038341,30]
[404867114,1770631832520,-3011.59,0.00038461,2]
[404867115,1770631832530,-3015.04,0.00038626,2]
[404867116,1770631832539,-166.66,0.00038719,30]
[404867117,1770631832549,-281.00869339,0.000388,5]
[404867118,1770631832558,-500.0,0.000388,5]
[404867119,1770631832567,-500.0,0.000388,5]
[404867120,1770631832577,-500.0,0.000388,5]
[404867121,1770631832587,-500.0,0.000388,5]
[404867122,1770631832596,-163.22379102,0.000388,5]
[404867123,1770631832605,-500.0,0.000388,5]
[404867124,1770631832615,-500.0,0.000388,2]
[404867125,1770631832624,-437.77,0.00038915,2]
[404867126,1770631832634,-1992.84343038,0.00039001,2]
[404867127,1770631832643,-366.08139334,0.00039001,2]
[404867128,1770631832653,-1000.0,0.00039512,2]
[404867129,1770631832662,-377.05,0.0003964,2]
[404867130,1770631832676,-1992.84343038,0.00039752,2]
[404867131,1770631832685,-366.08139334,0.00039752,2]
[404867132,1770631832695,-6680.9,0.0004,120]
[404867133,1770631832704,-8106.01608021,0.0004,120]
[404867134,1770631832718,-7069.67171264,0.0004,120]
[404867135,1770631832729,-280.0,0.0004,120]
[404867136,1770631832742,-911.77284541,0.0004,120]
[404867137,1770631832754,-1078.91753198,0.0004,120]
[404867143,1770631838132,-500.0,0.000388,5]
[404867144,1770631838142,-500.0,0.000388,5]
[404867145,1770631838152,-1144.28182976,0.0004,120]
[404867146,1770631838162,-1171.95817024,0.00040111,120]
[404867147,1770631838173,-226.08182976,0.00040111,120]
[404867148,1770631838183,-1992.84343038,0.00040503,15]
[404867149,1770631838192,-366.08139334,0.00040503,15]
[404867150,1770631838201,-194.1,0.000408,30]
[404867151,1770631838211,-176.75618032,0.0004095,8]
[404867152,1770631838222,-1992.84343038,0.00041253,15]
[404867153,1770631838231,-366.08139334,0.00041253,15]
[404867154,1770631838241,-797.98,0.00041369,2]